[Event "Czech Open-Rapid 2022"]
[Site "Pardubice"]
[Date "2022.07.21"]
[Round "4.41"]
[White "Ibrahim, Emad Eldin"]
[Black "Skoloud, Barnabas"]
[Result "1-0"]
[ECO "C43"]
[WhiteElo "2028"]
[BlackElo "1852"]
[Annotator "TA"]
[PlyCount "57"]
[EventDate "2022.07.20"]
[EventType "swiss"]
[EventCountry "CZE"]
[SourceTitle "playchess.com"]
[Source "ChessBase"]
[SourceQuality "1"]
[TimeControl "1200+10"]

{[%evp 11,57,40,41,23,262,251,281,279,599,579,841,854,916,910,901,904,912,896,877,626,901,358,765,577,578,479,467,467,531,529,532,506,502,485,480,470,513,511,614,556,780,762,696,616,29984,29985,29982,29982]} 1. e4 {[%emt 0:00:02]} e5 {[%emt 0:00:03]} 2. Nf3 {[%emt 0:00:02]} Nf6 {[%emt 0:00:01]} 3. d4 {[%emt 0:00:07]} Nxe4 {[%emt 0:00:03]} 4. Bd3 {[%emt 0:00:03]} d5 {[%emt 0:00:16]} 5. Nxe5 {[%emt 0:00:04]} Be7 {[%emt 0:01:07]} 6. O-O {[%emt 0:00:19]} O-O {[%emt 0:00:11]} 7. Nc3 {[%emt 0:00:03] C43: Petroff Defence: 3 d4.} f6 $2 {[%emt 0:01:24] [#]} (7... Nxc3 $11 8. bxc3 Nd7) 8. Nxd5 $1 $18 {[%emt 0:01:42][%mdl 512]} fxe5 {[%emt 0:00:10]} (8... Qxd5 $2 9. Bc4 Be6 10. Bxd5 $18) (8... Nd6 9. Qh5) 9. Bxe4 {[%emt 0:00:04] [#] Hoping for Qh5. White has a decisive advantage.} Bd6 $146 {[%emt 0:02:52]} (9... Nc6 {is tougher.} 10. dxe5 (10. Qh5 g6 $16) 10... Nxe5) ({Predecessor:} 9... exd4 10. Bf4 Bd6 11. Qh5 g6 12. Bxg6 hxg6 13. Qxg6+ Kh8 14. Bg5 Bxh2+ 15. Kxh2 Qxd5 16. Rh1 Bh3 17. Kxh3 {1-0 (17) Griffith,K (2346)-Colas,J (2288) Charlotte 2021}) 10. dxe5 {[%emt 0:00:20]} Bxe5 {[%emt 0:00:14]} 11. Qh5 {[%emt 0:00:02][%csl LRe5,LRh7]} Bf5 {[%emt 0:01:49]} 12. Bxf5 {[%emt 0:03:11]} Rxf5 {[%emt 0:00:02]} 13. Qxf5 {[%emt 0:00:04]} Qxd5 {[%emt 0:00:03]} 14. Qc8+ {[%emt 0:00:14]} Kf7 {[%emt 0:00:07]} 15. Be3 {[%emt 0:00:53]} b6 {[%emt 0:00:36]} 16. c4 $2 {[%emt 0:00:09]} (16. Qf5+ Kg8 17. f4) 16... Qc6 $2 {[%emt 0:02:51]} (16... Nd7 17. Qxc7 Qxg2+ 18. Kxg2 Bxc7) 17. Qf5+ {[%emt 0:00:10]} Bf6 {[%emt 0:00:08]} 18. Qxh7 {[%emt 0:00:03]} Nd7 {[%emt 0:00:12]} 19. Qh5+ {[%emt 0:00:03]} g6 {[%emt 0:00:58]} 20. Qh7+ {[%emt 0:00:10]} Bg7 {[%emt 0:00:07] White must now prevent ...Rh8.} 21. Bd4 {[%emt 0:00:02]} Nf6 {[%emt 0:00:03]} 22. Bxf6 {[%emt 0:00:07]} Qxf6 {[%emt 0:00:02]} 23. Qh3 {[%emt 0:00:02]} Rh8 {[%emt 0:01:04]} 24. Qd7+ {[%emt 0:00:02]} Kg8 {[%emt 0:00:02]} 25. Rae1 {[%emt 0:00:22]} Qf4 {[%emt 0:00:41][%csl Gh8][%cal Rf4h2]} 26. Re8+ {[%emt 0:00:09]} Bf8 {[%emt 0:00:26]} 27. g3 {[%emt 0:00:27]} Qxc4 {[%emt 0:01:20]} 28. Rfe1 {[%emt 0:00:15]} Qf7 {[%emt 0:00:55]} 29. R1e7 {[%emt 0:00:15] White took control after the opening.  Weighted Error Value: White=0.85/Black=0.97} 1-0

[Event "Czech Open-Rapid 2022"]
[Site "Pardubice"]
[Date "2022.07.21"]
[Round "4.42"]
[White "Sosnik, Sebastian"]
[Black "Nespurek, Jan"]
[Result "1-0"]
[ECO "C42"]
[WhiteElo "2255"]
[BlackElo "1571"]
[Annotator "TA"]
[PlyCount "63"]
[EventDate "2022.07.20"]
[EventType "swiss"]
[EventCountry "CZE"]
[SourceTitle "playchess.com"]
[Source "ChessBase"]
[SourceQuality "1"]
[TimeControl "1200+10"]

{[%evp 21,63,12,25,20,66,52,43,45,203,212,219,220,304,304,297,291,420,443,446,448,533,345,323,341,335,318,547,320,587,579,579,572,550,513,500,355,1406,725,29981,29982,29976,29979,29979,2117]} 1. e4 {[%emt 0:00:02]} e5 {[%emt 0:00:03]} 2. Nf3 {[%emt 0:00:06]} Nf6 {[%emt 0:00:06]} 3. Nxe5 {[%emt 0:00:07]} d6 {[%emt 0:00:05]} 4. Nf3 {[%emt 0:00:04]} Nxe4 {[%emt 0:00:04]} 5. d4 {[%emt 0:00:16]} d5 {[%emt 0:00:12]} 6. Bd3 {[%emt 0:00:07]} Bd6 {[%emt 0:00:22]} 7. O-O {[%emt 0:00:11]} O-O {[%emt 0:00:05]} 8. c4 {[%emt 0:00:21]} c6 {[%emt 0:00:13]} 9. Nc3 {[%emt 0:01:35]} Nxc3 {[%emt 0:01:27]} 10. bxc3 {[%emt 0:00:03]} dxc4 {[%emt 0:00:52]} 11. Bxc4 {[%emt 0:00:15]} Bf5 {[%emt 0:00:38]} 12. Bg5 $1 {[%emt 0:02:30] [#] 12.Bg5 is better than 12.Re1. C42: Petroff Defence: 3 Nxe5 and unusual White 3rd moves.} Be7 $146 {[%emt 0:01:18]} (12... Qa5 $11 {was preferrable.}) ({Predecessor:} 12... Qa5 13. d5 Be4 14. dxc6 Bxf3 15. Qxf3 Nxc6 16. Bd5 h6 17. Be3 Qxc3 18. Rab1 Rab8 19. Rfd1 Qe5 {1-0 (50) Giri,A (2773)-Vidit,S (2723) Chess.com INT 2022}) 13. Bxe7 {[%emt 0:02:30] White is more active.} Qxe7 {[%emt 0:00:03]} 14. Re1 {[%emt 0:00:08] White is slightly better.} Qa3 {[%emt 0:02:07] [#]} (14... Qf6 $14) 15. Ne5 $1 $18 {[%emt 0:04:11] Threatens to win with Nxf7.} Nd7 {[%emt 0:01:03]} 16. Nxf7 {[%emt 0:02:28]} Rxf7 {[%emt 0:00:07]} 17. Bxf7+ {[%emt 0:00:04]} Kxf7 {[%emt 0:00:15] [#]} 18. Qf3 $1 {[%emt 0:00:05]} ({And not} 18. Qh5+ Bg6 19. Qh3 Nf6 $15) 18... Nf6 {[%emt 0:02:18]} (18... g6 $142 19. g4 Kg8 20. gxf5 Rf8) 19. Qxf5 {[%emt 0:00:12]} Qxc3 {[%emt 0:00:47]} 20. Rab1 {[%emt 0:00:38]} (20. Rac1 Re8 21. Qb1 (21. Rxc3 $2 Rxe1#) 21... Rxe1+ 22. Rxe1 b6 $18) 20... b6 {[%emt 0:00:49]} 21. Rbc1 {[%emt 0:00:32][%cal Bb1c1,Bc1c6,Bc6e6][%mdl 32]} Re8 {[%emt 0:00:38]} 22. Red1 {[%emt 0:01:03]} (22. Rxc3 $2 Rxe1#) 22... Qb4 {[%emt 0:00:28]} 23. g4 {[%emt 0:01:40] g5 is the strong threat.} g6 $2 {[%emt 0:00:34]} (23... Qd6 24. h3 Re4) 24. Qf4 {[%emt 0:00:06]} Kg7 $2 {[%emt 0:00:25]} (24... Re4 25. Qc7+ Qe7 26. Qxc6 (26. Rxc6 Rxg4+ 27. Kf1 Nd5 $18) 26... Rxg4+ 27. Kf1 g5) 25. Rxc6 {[%emt 0:00:17]} Nd5 {[%emt 0:00:06]} 26. Qf3 {[%emt 0:01:00]} Rd8 {[%emt 0:01:32]} 27. Re6 {[%emt 0:00:43] Against Qe7} Qc4 {[%emt 0:01:20]} 28. Qe2 {[%emt 0:01:20]} Qc3 {[%emt 0:01:11]} (28... Qxe2 29. Rxe2 Rd7) 29. Qe5+ {[%emt 0:00:26]} Kg8 {[%emt 0:02:03]} 30. Re8+ {[%emt 0:00:24] White mates.} Rxe8 {[%emt 0:00:03]} 31. Qxe8+ {[%emt 0:00:02]} Kg7 {[%emt 0:00:13]} 32. Qd7+ {[%emt 0:00:01] Black got outplayed after the opening.  Weighted Error Value: White=0.36/Black=1.07} 1-0

[Event "Czech Open-Rapid 2022"]
[Site "Pardubice"]
[Date "2022.07.21"]
[Round "4.43"]
[White "Sindler, Jaromir"]
[Black "Malinovsky, Petr"]
[Result "1-0"]
[ECO "D45"]
[WhiteElo "1582"]
[BlackElo "1959"]
[Annotator "TA"]
[PlyCount "62"]
[EventDate "2022.07.20"]
[EventType "swiss"]
[EventCountry "CZE"]
[SourceTitle "playchess.com"]
[Source "ChessBase"]
[SourceQuality "1"]
[TimeControl "1200+10"]

{[%evp 14,62,11,15,8,12,13,-3,28,0,27,-18,-6,-41,-41,-70,-80,-89,-58,-60,-66,-75,-64,-65,-65,-152,-144,-158,-141,-218,-120,-302,-29,-14,0,0,0,0,0,0,0,0,0,-55,-61,-32,-47,-51,-56,-699,-709]} 1. d4 {[%emt 0:04:09]} d5 {[%emt 0:00:02]} 2. Nf3 {[%emt 0:00:01]} e6 {[%emt 0:00:03]} 3. c4 {[%emt 0:00:06]} c6 {[%emt 0:00:02]} 4. e3 {[%emt 0:00:02]} Nf6 {[%emt 0:00:07]} 5. Nc3 {[%emt 0:00:04]} Be7 {[%emt 0:00:10]} 6. Be2 {[%emt 0:00:33]} O-O {[%emt 0:00:08]} 7. O-O {[%emt 0:00:02]} Nbd7 {[%emt 0:00:18]} 8. b3 $1 {[%emt 0:00:08] 8.b3 is better than 8.Qc2.} b6 {[%emt 0:00:05] D45: Semi-Slav: 5 e3.} 9. Bb2 {[%emt 0:00:02]} Bb7 {[%emt 0:00:11]} 10. cxd5 {[%emt 0:00:18]} exd5 {[%emt 0:00:49] The position is equal.} 11. Rc1 {[%emt 0:00:13] [#]} Ne4 $146 {[%emt 0:00:38]} ({Predecessor:} 11... a6 12. Ne5 Nxe5 13. dxe5 Nd7 14. f4 a5 15. Bd3 Nc5 16. Bb1 f5 17. Ne2 Bc8 {0-1 (67) Manukyan,S (2253)-Hryzlova,S (2186) Chess.com INT 2021}) 12. Nd2 {[%emt 0:00:43]} f5 {[%emt 0:00:39]} 13. f3 {[%emt 0:00:02]} Nxc3 {[%emt 0:01:12]} 14. Rxc3 {[%emt 0:00:02]} Bb4 {[%emt 0:00:49]} 15. Rc1 {[%emt 0:00:16]} Qe7 {[%emt 0:00:33]} 16. e4 {[%emt 0:01:08]} fxe4 {[%emt 0:00:17]} 17. fxe4 {[%emt 0:00:05]} Rxf1+ {[%emt 0:00:20]} (17... Qg5 {seems wilder.} 18. exd5 Bxd2 19. dxc6 Rxf1+ 20. Bxf1 Qe3+) 18. Bxf1 {[%emt 0:00:04]} dxe4 {[%emt 0:00:33]} (18... Qg5 {is more complex.} 19. exd5 Bxd2 20. dxc6 Qe3+) 19. Bc4+ {[%emt 0:00:09]} (19. Nc4 $15) 19... Kh8 $17 {[%emt 0:00:10]} 20. Nf1 {[%emt 0:01:05]} Bd6 {[%emt 0:01:42]} 21. d5 {[%emt 0:00:38]} (21. Rc2 $17) 21... Nc5 {[%emt 0:01:42]} (21... Ne5 $19 {White must now prevent ...cxd5.} 22. dxc6 Bxc6) 22. Ne3 {[%emt 0:02:45] [#]} (22. dxc6 $17 Bxc6 23. Ng3) 22... Be5 $2 {[%emt 0:02:13]} ({Better is} 22... Qg5 $1 $19 {[%cal Rg5e3]} 23. Qd4 cxd5 24. Bxd5 Bxd5) 23. d6 {[%emt 0:02:52]} Qxd6 {[%emt 0:01:03]} (23... Qg5 {with more complications.} 24. Bxe5 Qxe3+ 25. Kh1 Nd3) 24. Qxd6 {[%emt 0:00:24]} Bxd6 {[%emt 0:00:01]} 25. Nf5 {[%emt 0:00:02][%csl Gf5,LRd6,LRg7][%cal Rb2g7]} Bf8 {[%emt 0:00:42] Threatens to win with ...Nd3.} 26. Nh6 $1 {[%emt 0:00:59]} Be7 {[%emt 0:04:26]} 27. Nf7+ {[%emt 0:01:32]} Kg8 {[%emt 0:00:03]} 28. Ne5+ {[%emt 0:02:15]} (28. Ng5+ $11 Kh8 29. Nf7+ Kg8 30. Ng5+ Kh8 31. Nf7+) 28... Kf8 $15 {[%emt 0:00:25]} 29. Rf1+ {[%emt 0:00:22]} Ke8 {[%emt 0:01:03]} 30. Bf7+ {[%emt 0:00:22]} Kd8 {[%emt 0:00:06]} 31. Be6 $2 {[%emt 0:00:25][%mdl 8192] [#]} Nxe6 {[%emt 0:00:12][%mdl 32768] Weighted Error Value: White=0.56/Black=0.37. Loss on time!?} 1-0

[Event "Czech Open-Rapid 2022"]
[Site "Pardubice"]
[Date "2022.07.21"]
[Round "4.44"]
[White "Bouska, Jiri"]
[Black "Cejka, Jan"]
[Result "1/2-1/2"]
[ECO "B10"]
[WhiteElo "2157"]
[BlackElo "1731"]
[Annotator "TA"]
[PlyCount "134"]
[EventDate "2022.07.20"]
[EventType "swiss"]
[EventCountry "CZE"]
[SourceTitle "playchess.com"]
[Source "ChessBase"]
[SourceQuality "1"]
[TimeControl "1200+10"]

{[%evp 18,134,12,14,17,10,17,14,20,24,22,0,22,22,18,16,22,21,23,22,48,2,78,68,66,6,11,0,0,0,0,-1,-4,-8,0,0,0,0,0,0,0,0,0,0,0,0,0,0,0,0,0,0,0,-18,0,-8,-9,-141,0,0,0,-20,-18,-20,-27,-88,8,0,0,-16,0,-40,-35,-1221,-1207,-5057,-2792,-29982,-29983,-29982,-29976,-29975,0,0,0,0,0,0,0,0,0,0,0,0,0,0,0,0,0,0,0,0,0,0,0,0,0,0,0,0,0,0,0,0,0,0,0,0,0]} 1. e4 {[%emt 0:00:03]} c6 {[%emt 0:00:01]} 2. Nc3 {[%emt 0:00:02]} d5 {[%emt 0:00:02]} 3. Nf3 {[%emt 0:00:02]} dxe4 {[%emt 0:00:06]} 4. Nxe4 {[%emt 0:00:02]} Nf6 {[%emt 0:00:01]} 5. Nxf6+ {[%emt 0:00:10]} exf6 {[%emt 0:00:02]} 6. d4 {[%emt 0:00:08]} Bd6 {[%emt 0:00:18]} 7. Be2 {[%emt 0:00:02]} O-O {[%emt 0:00:06]} 8. O-O {[%emt 0:00:03]} Be6 {[%emt 0:00:23]} 9. Be3 {[%emt 0:00:03]} Re8 {[%emt 0:00:17]} 10. c4 {[%emt 0:00:04]} Na6 {[%emt 0:01:04] B15: Caro-Kann: 3 Nc3: 3...g6 and 3...dxe4 4 Nxe4 Nf6 5 Nxf6+ exf6.} 11. Re1 {[%emt 0:00:43]} Nc7 {[%emt 0:00:23] [#]} 12. Qc2 $146 {[%emt 0:01:12]} ({Predecessor:} 12. Qd2 Qd7 13. Rad1 a6 14. a3 Rab8 15. b4 b5 16. c5 Bf8 17. Bf4 Ra8 18. Bg3 {0-1 (39) Aaditya,D (1608)-Sreeshwan,M (2063) Ahmedabad 2018}) 12... Qd7 {[%emt 0:00:52]} 13. Bd3 {[%emt 0:00:34]} g6 {[%emt 0:01:00]} 14. Rad1 {[%emt 0:01:31]} Rad8 {[%emt 0:01:07]} 15. Nd2 {[%emt 0:00:16]} f5 {[%emt 0:01:31]} 16. Bg5 {[%emt 0:00:13]} Be7 {[%emt 0:00:33]} 17. Bxe7 {[%emt 0:00:07]} Rxe7 {[%emt 0:00:02]} 18. Nf3 {[%emt 0:00:05]} f6 {[%emt 0:00:47]} 19. Qc3 {[%emt 0:01:00]} (19. Qb3 $14 {feels stronger.}) 19... Kg7 {[%emt 0:00:34]} (19... Bf7 $11) 20. Qa3 $16 {[%emt 0:02:29]} a6 {[%emt 0:01:24]} 21. Re2 {[%emt 0:02:31] White is more active.} (21. Qb4 $14) 21... Qd6 $11 {[%emt 0:02:08]} 22. Qc3 {[%emt 0:01:18][%cal Od4d5]} Bf7 {[%emt 0:00:47] Prevents d5.} 23. Rxe7 {[%emt 0:04:39]} Qxe7 {[%emt 0:00:02]} 24. Bc2 {[%emt 0:01:11]} Qd6 {[%emt 0:00:58]} 25. Bb3 {[%emt 0:02:22]} Ne6 {[%emt 0:00:39]} 26. g3 {[%emt 0:01:11]} h5 {[%emt 0:00:52]} 27. d5 {[%emt 0:01:27]} cxd5 {[%emt 0:00:30]} 28. Rxd5 {[%emt 0:00:03]} Qc7 {[%emt 0:01:25]} 29. Rxd8 {[%emt 0:00:18]} Qxd8 {[%emt 0:00:03]} 30. c5 {[%emt 0:00:48]} Qc7 {[%emt 0:00:54]} 31. Bxe6 {[%emt 0:00:04]} Bxe6 {[%emt 0:00:02][%mdl 4096] Endgame KQB-KQN} 32. a3 {[%emt 0:00:19]} f4 {[%emt 0:00:43]} 33. Nd4 {[%emt 0:00:19]} Bd5 {[%emt 0:00:20]} 34. Ne2 {[%emt 0:00:08]} fxg3 {[%emt 0:00:57]} 35. hxg3 {[%emt 0:00:03]} Qc8 {[%emt 0:00:29]} 36. Nf4 {[%emt 0:00:05] Prevents Qh3.} Bc6 {[%emt 0:00:18] next ...g5 is good for Black.} 37. Qe3 {[%emt 0:00:17]} (37. f3 $11) 37... Qe8 {[%emt 0:02:25]} ({Black should play} 37... Qf5 $1 $17 {[%cal Rf5b1] ( -> ...Qb1+)} 38. Qd3 (38. Qe7+ Kh6 $17) 38... Qxd3 39. Nxd3 Kf7) 38. Qxe8 {[%emt 0:00:11]} Bxe8 {[%emt 0:00:02] KB-KN} 39. b4 {[%emt 0:00:19]} Kf7 {[%emt 0:00:17]} 40. Kf1 {[%emt 0:00:03]} Ke7 {[%emt 0:00:09]} 41. Ke2 {[%emt 0:00:14] [#]} (41. a4 $11 {remains equal.}) 41... f5 {[%emt 0:00:32]} ({Better is} 41... g5 $1 $17 {[%cal Rg5f4]} 42. Nd5+ Ke6 43. Nc7+ Kf7) 42. Ke3 {[%emt 0:00:09]} Kf6 {[%emt 0:00:20]} 43. Kd4 {[%emt 0:00:02]} Bc6 {[%emt 0:00:09]} 44. Nd3 {[%emt 0:00:26]} g5 {[%emt 0:00:14] And now ...h4 would win.} 45. Ne5 $2 {[%emt 0:00:07][%mdl 8192] [#]} (45. f4 $15) 45... h4 $1 $19 {[%emt 0:00:20]} 46. gxh4 {[%emt 0:00:09]} gxh4 {[%emt 0:00:02]} 47. Nxc6 {[%emt 0:00:16]} bxc6 {[%emt 0:00:02] KP-KP} 48. Ke3 {[%emt 0:00:03]} Ke5 {[%emt 0:01:07]} 49. Kf3 {[%emt 0:00:10]} h3 $2 {[%emt 0:00:29]} (49... Kd5 {mates} 50. a4 Kc4 51. b5 axb5 52. axb5 Kxb5 53. Kf4 Kxc5 54. Kf3 Kd5 55. Kg2 c5 56. Kh3 c4 57. Kxh4 c3 58. Kh5 c2 59. Kg5 c1=Q+ 60. Kxf5 Qc2+ 61. Kf6 Qxf2+ 62. Kg5 Ke6 63. Kg4 Kf6 64. Kh3 Qg1 65. Kh4 Qg2 66. Kh5 Qh3#) 50. Kg3 $11 {[%emt 0:00:01] The position is equal.} Kd4 {[%emt 0:00:04]} 51. Kxh3 {[%emt 0:00:06] Hoping for Kg3.} Kc4 {[%emt 0:00:01]} 52. Kg3 {[%emt 0:00:03] Black must now prevent Kf4.} Kb3 {[%emt 0:00:02]} 53. Kf4 {[%emt 0:00:01] Ke5 would kill now.} Kxa3 {[%emt 0:00:01]} 54. Kxf5 {[%emt 0:00:03]} Kxb4 {[%emt 0:00:02] KPP-KPP} 55. Ke6 {[%emt 0:00:42]} a5 {[%emt 0:00:01]} (55... Kxc5 56. f4 Kd4 57. f5 Kd3 58. f6 c5 59. f7 c4 60. f8=Q) 56. f4 $1 {[%emt 0:00:03]} (56. Kd6 a4 57. f4 a3 58. Kxc6 a2 59. Kd5 a1=Q 60. c6 Qh1+ 61. Kd4 Qxc6 62. Ke5 Kc5 63. f5 Qd6+ 64. Ke4 Qf6 65. Kf3 Qxf5+ 66. Kg3 Kd4 67. Kg2 Ke3 68. Kg3 Qg6+ 69. Kh2 Kf2 70. Kh3 Qh5#) 56... a4 {[%emt 0:00:01]} (56... Kxc5 57. f5 Kc4 58. f6 Kd3 59. f7 c5 60. f8=Q c4 61. Qd8+ Kc3 62. Qxa5+ Kc2 63. Ke5) 57. f5 {[%emt 0:00:02]} a3 {[%emt 0:00:01]} (57... Kxc5 58. f6 Kd4 59. f7 Kc4 60. f8=Q Kb3 61. Qf3+ Kb2 62. Qg2+ Kb3 63. Qxc6) 58. f6 {[%emt 0:00:02]} a2 {[%emt 0:00:02]} (58... Kxc5 {gets mated.} 59. f7 Kc4 60. f8=Q Kb3 61. Qb8+ Kc4 62. Qb1 c5 63. Ke5) 59. f7 {[%emt 0:00:01]} a1=Q {[%emt 0:00:02]} 60. f8=Q {[%emt 0:00:05] Prevents Qg7. KQ-KQ} Qa2+ {[%emt 0:00:28]} 61. Kd6 {[%emt 0:00:55]} Qd5+ {[%emt 0:00:02]} 62. Kc7 {[%emt 0:00:02]} Qxc5 {[%emt 0:00:19]} 63. Qf4+ {[%emt 0:00:13]} Kb5 {[%emt 0:00:12]} 64. Qf1+ {[%emt 0:00:07]} Kb4 {[%emt 0:00:17]} 65. Qb1+ {[%emt 0:00:06]} Kc4 {[%emt 0:00:03]} 66. Qe4+ {[%emt 0:00:12]} Kb5 {[%emt 0:00:13]} 67. Qb1+ {[%emt 0:00:09]} Kc4 {[%emt 0:00:11] And White is the lucky defender.  Weighted Error Value: White=0.46/Black=0.21 (precise)} 1/2-1/2

[Event "Czech Open-Rapid 2022"]
[Site "Pardubice"]
[Date "2022.07.21"]
[Round "5.1"]
[White "Pulpan, Jakub"]
[Black "Korobov, Anton"]
[Result "1/2-1/2"]
[ECO "B90"]
[WhiteElo "2424"]
[BlackElo "2692"]
[Annotator "TA"]
[PlyCount "81"]
[EventDate "2022.07.20"]
[EventType "swiss"]
[EventCountry "CZE"]
[SourceTitle "playchess.com"]
[Source "ChessBase"]
[SourceQuality "1"]
[TimeControl "1200+10"]

{[%evp 13,81,25,26,0,33,22,34,21,21,36,29,0,6,3,10,-32,-28,-30,0,0,2,0,2,0,0,0,0,0,0,0,12,-77,-75,-85,-77,-78,0,0,0,0,52,59,48,93,95,12,12,12,57,8,8,-8,-8,-8,-8,-8,-8,-8,-8,-8,-8,-8,-8,-8,-8,-8,-8,-8,-8,-8]} 1. e4 {[%emt 0:00:03]} c5 {[%emt 0:00:01]} 2. Nf3 {[%emt 0:00:02]} d6 {[%emt 0:00:02]} 3. d4 {[%emt 0:00:04]} cxd4 {[%emt 0:00:02]} 4. Nxd4 {[%emt 0:00:02]} Nf6 {[%emt 0:00:02]} 5. Nc3 {[%emt 0:00:01]} a6 {[%emt 0:00:01]} 6. h3 {[%emt 0:00:04]} e6 {[%emt 0:00:03]} 7. g4 {[%emt 0:00:05][%cal Bg2g4,Bg4g5][%mdl 32]} b5 {[%emt 0:00:03]} 8. g5 {[%emt 0:01:15] B81: Sicilian Scheveningen: Keres Attack.} Nfd7 {[%emt 0:00:03]} 9. Be3 {[%emt 0:00:27]} Bb7 {[%emt 0:00:06]} 10. a3 {[%emt 0:00:08] White is slightly better.} Be7 {[%emt 0:00:08]} 11. h4 {[%emt 0:00:43]} Nc6 {[%emt 0:00:07]} 12. Nxc6 {[%emt 0:00:18]} Bxc6 {[%emt 0:00:03]} 13. f4 {[%emt 0:00:35]} O-O {[%emt 0:00:16] [#]} 14. Rg1 $146 {[%emt 0:00:49]} ({Predecessor:} 14. h5 Nc5 15. Rg1 Qc7 16. f5 exf5 17. exf5 Rfe8 18. Qd2 Bxg5 19. Rxg5 Rxe3+ 20. Qxe3 {0-1 (36) Schwellnus,G-Jarecki,M freechess.de 2015}) 14... Qb8 {[%emt 0:00:53]} 15. h5 {[%emt 0:04:53]} b4 {[%emt 0:00:15]} (15... a5 $5 {[%cal Rb5b4]}) 16. axb4 {[%emt 0:00:01]} Qxb4 {[%emt 0:00:02]} 17. Qd4 {[%emt 0:00:22]} Rfb8 {[%emt 0:00:57]} 18. Qxb4 {[%emt 0:01:05]} (18. g6 {looks sharper.} hxg6 19. hxg6 Bh4+ 20. Kd2) 18... Rxb4 {[%emt 0:00:02]} 19. Rxa6 {[%emt 0:00:27]} Rxa6 {[%emt 0:00:07]} 20. Bxa6 {[%emt 0:00:01]} Nc5 {[%emt 0:01:33]} 21. Bxc5 {[%emt 0:01:21]} dxc5 {[%emt 0:00:02]} 22. Bd3 {[%emt 0:00:03]} (22. Ke2 $11) 22... c4 $17 {[%emt 0:00:42]} ({Of course not} 22... Rxb2 $6 23. Kd2 $11) 23. Be2 {[%emt 0:00:12]} Rxb2 {[%emt 0:00:02]} 24. Kd2 {[%emt 0:00:17] [#]} Bb4 {[%emt 0:00:06]} (24... Rb8 $1 $17 {Hoping for ...Bb4.} 25. Bxc4 Bb4) 25. Bxc4 $11 {[%emt 0:00:44]} Bxe4 $1 {[%emt 0:00:08] This bishop pair is nice.} 26. Bb3 {[%emt 0:06:03]} h6 {[%emt 0:01:39]} (26... Bf5 $11) 27. gxh6 $14 {[%emt 0:00:28]} g6 {[%emt 0:00:03]} 28. hxg6 {[%emt 0:00:14]} fxg6 {[%emt 0:00:26]} 29. Ra1 {[%emt 0:01:42]} ({Don't take} 29. Bxe6+ Kh7 30. Bb3 Kxh6 $14) ({White should try} 29. Re1 $16 Bd5 30. Bxd5 exd5 31. Kd3) 29... Kh7 $11 {[%emt 0:00:36]} 30. Ra4 {[%emt 0:00:13]} Kxh6 {[%emt 0:00:06][%cal Oe4f5]} (30... Bf5 $5) 31. Rxb4 {[%emt 0:01:11]} (31. Kc1 $14 {is superior.} Bxc3 32. Rxe4) 31... Bxc2 $1 {[%emt 0:00:03] The position is equal.} 32. Kc1 {[%emt 0:01:12]} Rxb3 {[%emt 0:00:06]} 33. Rxb3 {[%emt 0:00:01]} Bxb3 {[%emt 0:00:02][%mdl 4096] Endgame KB-KN} 34. Kd2 {[%emt 0:00:01]} Kh5 {[%emt 0:00:11]} 35. Ke3 {[%emt 0:00:01]} Kg4 {[%emt 0:00:05]} 36. Ne4 {[%emt 0:00:06]} Bd5 {[%emt 0:00:02]} 37. Nf2+ {[%emt 0:00:11]} Kf5 {[%emt 0:00:13]} 38. Nd3 {[%emt 0:00:01]} Bb7 {[%emt 0:00:30]} 39. Nc5 {[%emt 0:00:02]} Bc6 {[%emt 0:00:05]} 40. Nd3 {[%emt 0:00:02]} Bd5 {[%emt 0:00:02]} 41. Nc5 {[%emt 0:00:02] Weighted Error Value: White=0.16 (very precise) /Black=0.13 (very precise)} 1/2-1/2